fUSD/lending_fUSD_20250510
["ID","MTS","AMOUNT","RATE_DAILY","PERIOD"]
[360523436,1746837034526,-400.0,0.00019953,2]
[360523440,1746837034555,-400.0,0.00019953,2]
[360523443,1746837034588,-150.0,0.00019953,2]
[360523447,1746837034622,-400.0,0.00019953,2]
[360523450,1746837034657,-509.53,0.00019953,2]
[360523454,1746837034689,-762.69,0.00019953,2]
[360523457,1746837034717,-425.88,0.00019953,2]
[360523461,1746837034752,-758.74,0.00019953,2]
[360523465,1746837034779,-400.0,0.00019953,2]
[360523468,1746837034805,-400.0,0.00019953,2]
[360523472,1746837034834,-6485.61,0.00019953,2]
[360523476,1746837034861,-400.0,0.00019953,2]
[360523479,1746837034887,-150.0,0.00019953,2]
[360523482,1746837034913,-150.0,0.00019953,2]
[360523486,1746837034939,-400.0,0.00019953,2]
[360523487,1746837034965,-1257.63,0.00019953,2]
[360523488,1746837034993,-400.0,0.00019953,2]
[360523489,1746837035019,-771.11,0.00019953,2]
[360523490,1746837035045,-1562.23,0.00019953,2]
[360523491,1746837035069,-153.0,0.00019953,2]
[360523507,1746837035222,-211.96519528,0.00019953,2]
[360523511,1746837035255,-170.0,0.00019953,2]
[360523515,1746837035283,-150.0,0.00019953,2]
[360523518,1746837035309,-497.09,0.00019953,2]
[360523522,1746837035334,-175.85966245,0.00019953,2]
[360523526,1746837035360,-551.5,0.00019953,2]
[360523529,1746837035384,-400.0,0.00019953,2]
[360523533,1746837035407,-150.0,0.00019953,2]
[360523536,1746837035432,-610.64,0.00019953,2]
[360523540,1746837035456,-150.0,0.00019953,2]
[360523544,1746837035480,-546.45143736,0.00019953,2]
[360523547,1746837035507,-468.73,0.00019953,2]
[360523551,1746837035531,-430.09220572,0.00019953,2]
[360523554,1746837035556,-619.5,0.00019953,2]
[360523558,1746837035590,-418.74,0.00019953,2]
[360523562,1746837035615,-400.0,0.00019953,2]
[360523565,1746837035638,-5793.36,0.00019953,2]
[360523569,1746837035663,-400.0,0.00019953,2]
[360523573,1746837035689,-462.18,0.00019953,2]
[360523576,1746837035715,-1448.86,0.00019953,2]
[360523579,1746837035741,-150.0,0.00019953,2]
[360523580,1746837035764,-500.0,0.00019953,2]
[360523582,1746837035788,-769.21,0.00019953,2]
[360523583,1746837035812,-400.0,0.00019953,2]
[360523584,1746837035835,-693.5,0.00019953,2]
[360523585,1746837035860,-500.0,0.00019954,2]
[360523586,1746837035886,-70409.70203158,0.00019954,2]
[360523587,1746837036729,-152.47,0.00019889,2]
[360523588,1746837036739,-2432.32,0.00019898,2]
[360523589,1746837036751,-5311.67824817,0.00019898,2]
[360523590,1746837036763,-104859.4110818,0.00019898,2]
[360523591,1746837036773,-400.0,0.00019898,2]
[360523592,1746837036782,-472.820295,0.00019898,2]
[360523593,1746837036791,-400.0,0.00019898,2]
[360523594,1746837036801,-524.77590197,0.00019898,2]
[360523595,1746837036811,-400.0,0.00019898,2]
[360523596,1746837036827,-6231.633351,0.00019898,2]
[360523597,1746837036837,-400.0,0.00019898,2]
[360523598,1746837036847,-400.0,0.00019898,2]
[360523599,1746837036856,-400.0,0.00019949,2]
[360523600,1746837036866,-400.0,0.00019949,2]
[360523601,1746837036875,-400.0,0.00019949,2]
[360523602,1746837036885,-400.0,0.00019949,2]
[360523603,1746837036895,-151.0,0.00019949,2]
[360523604,1746837036904,-400.0,0.00019949,2]
[360523605,1746837036914,-520.0,0.00019953,2]
[360523606,1746837036923,-400.0,0.00019953,2]
[360523607,1746837036936,-422.68385831,0.00019953,2]
[360523608,1746837036945,-400.0,0.00019953,2]
[360523609,1746837036955,-400.0,0.00019953,2]
[360523610,1746837036964,-379.29,0.00019953,2]
[360523611,1746837036974,-1627.3317496,0.00019954,2]
[360523612,1746837036983,-21848.4020961,0.00019954,2]
[360523613,1746837036994,-14180.4723817,0.00019954,2]
[360523614,1746837037004,-400.0,0.00019966,2]
[360523615,1746837037013,-400.0,0.00019966,2]
[360523616,1746837037023,-400.0,0.00019966,2]
[360523617,1746837037041,-400.0,0.00019966,2]
[360523618,1746837037060,-400.0,0.00019966,2]
[360523619,1746837037070,-400.0,0.00019966,2]
[360523620,1746837037081,-1116.28,0.00019966,2]
[360523621,1746837037091,-162.65033312,0.00019966,2]
[360523622,1746837037102,-400.0,0.00019966,2]
[360523623,1746837037112,-400.0,0.00019966,2]
[360523624,1746837037123,-400.0,0.00019966,2]
[360523625,1746837037134,-400.0,0.00019966,2]
[360523626,1746837037144,-1250.01,0.00019966,2]
[360523627,1746837037153,-400.0,0.00019966,2]
[360523628,1746837037162,-400.0,0.00019966,2]
[360523629,1746837037171,-896.22,0.00019966,2]
[360523630,1746837037180,-400.0,0.00019966,2]
[360523631,1746837037190,-400.0,0.00019966,2]
[360523632,1746837037199,-400.0,0.00019967,2]
[360523633,1746837037208,-306.5,0.00019967,2]
[360523634,1746837037218,-500.0,0.00019967,2]
[360523635,1746837037227,-760.97,0.00019967,2]
[360523636,1746837037236,-400.0,0.00019967,2]
[360523637,1746837037246,-400.0,0.00019967,2]
[360523638,1746837037255,-400.0,0.00019967,2]
[360523639,1746837037264,-434.49,0.00019967,2]
[360523640,1746837037273,-961.17,0.00019967,2]
[360523641,1746837037282,-400.0,0.00019967,2]
[360523642,1746837037292,-789.33,0.00019967,2]
[360523643,1746837037302,-400.0,0.00019967,2]
[360523644,1746837037311,-1733.16,0.00019967,2]
[360523645,1746837037320,-400.0,0.00019967,2]
[360523646,1746837037330,-9618.09,0.00019967,2]
[360523647,1746837037339,-459.63,0.00019967,2]
[360523648,1746837037347,-703.72,0.00019967,2]
[360523649,1746837037356,-619.58,0.00019967,2]
[360523650,1746837037366,-400.0,0.00019967,2]
[360523651,1746837037375,-150.0,0.00019967,2]
[360523652,1746837037384,-400.0,0.00019967,2]
[360523653,1746837037393,-670.82,0.00019967,2]
[360523654,1746837037403,-1102.6327235,0.00019968,2]
[360523655,1746837037412,-4637.4222286,0.00019968,2]
[360523656,1746837037422,-4648.0,0.00019973,2]
[360523657,1746837037431,-500.0,0.00019973,2]
[360523658,1746837037440,-303.91830491,0.00019973,2]
[360523659,1746837037449,-500.0,0.00019973,2]
[360523660,1746837037459,-339.11389309,0.00019973,2]
[360523661,1746837037468,-500.0,0.00019973,2]
[360523662,1746837037477,-500.0,0.00019973,2]
[360523663,1746837037486,-505.67693439,0.00019973,2]
[360523664,1746837037499,-500.0,0.00019973,2]
[360523665,1746837037508,-500.0,0.00019973,2]
[360523666,1746837037518,-500.0,0.00019973,2]
[360523667,1746837037527,-500.0,0.00019973,2]
[360523668,1746837037536,-507.85077613,0.00019973,2]
[360523669,1746837037546,-500.0,0.00019973,2]
[360523670,1746837037555,-500.0,0.00019973,2]
[360523671,1746837037566,-500.0,0.00019973,2]
[360523672,1746837037577,-500.0,0.00019973,2]
[360523673,1746837037587,-547.21932984,0.00019973,2]
[360523674,1746837037597,-500.0,0.00019973,2]
[360523675,1746837037607,-500.0,0.00019973,2]
[360523676,1746837037616,-389.64657331,0.00019973,2]
[360523677,1746837037627,-500.0,0.00019973,2]
[360523678,1746837037636,-500.0,0.00019973,2]
[360523679,1746837037645,-500.0,0.00019973,2]
[360523680,1746837037655,-1191.25825704,0.00019976,2]
[360523681,1746837037664,-150.0,0.00019979,2]
[360523682,1746837037674,-1007.0,0.00019979,2]
[360523683,1746837037683,-1043.6813931,0.0001998,2]
[360523684,1746837037692,-500.0,0.00019981,2]
[360523685,1746837037702,-255.63185782,0.00019982,2]
[360523686,1746837037712,-346.94,0.00019983,2]
[360523687,1746837037721,-600.0,0.00019983,2]
[360523688,1746837037731,-574.34,0.00019983,2]
[360523689,1746837037743,-1641.99,0.00019983,2]
[360523690,1746837037753,-1802.21,0.00019983,2]
[360523691,1746837037762,-1324.99,0.00019983,2]
[360523692,1746837037772,-400.0,0.00019983,2]
[360523693,1746837037781,-758.74,0.00019983,2]
[360523694,1746837037790,-400.0,0.00019983,2]
[360523695,1746837037799,-6485.61,0.00019983,2]
[360523696,1746837037809,-400.0,0.00019983,2]
[360523697,1746837037818,-1257.63,0.00019983,2]
[360523698,1746837037827,-400.0,0.00019983,2]
[360523699,1746837037836,-771.11,0.00019983,2]
[360523700,1746837037846,-1562.23,0.00019983,2]
[360523701,1746837037855,-400.0,0.00019984,2]
[360523702,1746837037864,-400.0,0.00019984,2]
[360523703,1746837037874,-400.0,0.00019984,2]
[360523704,1746837037884,-400.0,0.00019984,2]
[360523705,1746837037893,-400.0,0.00019984,2]
[360523706,1746837037903,-400.0,0.00019984,2]
[360523707,1746837037913,-400.0,0.00019984,2]
[360523708,1746837037922,-760.97,0.00019984,2]
[360523709,1746837037932,-400.0,0.00019984,2]
[360523710,1746837037942,-400.0,0.00019984,2]
[360523711,1746837037951,-400.0,0.00019984,2]
[360523712,1746837037961,-246.71,0.00019984,2]
[360523713,1746837037971,-450.0,0.00019984,2]
[360523714,1746837037980,-450.0,0.00019984,2]
[360523715,1746837037991,-434.49,0.00019984,2]
[360523716,1746837038001,-961.17,0.00019984,2]
[360523717,1746837038012,-400.0,0.00019984,2]
[360523718,1746837038022,-789.33,0.00019984,2]
[360523719,1746837038032,-400.0,0.00019984,2]
[360523720,1746837038041,-1733.16,0.00019984,2]
[360523721,1746837038051,-397.04,0.00019984,2]
[360523722,1746837038060,-400.0,0.00019984,2]
[360523723,1746837038069,-762.69,0.00019984,2]
[360523724,1746837038078,-400.0,0.00019984,2]
[360523725,1746837038089,-425.88,0.00019984,2]
[360523726,1746837038099,-1116.28,0.00019984,2]
[360523727,1746837038109,-9618.09,0.00019984,2]
[360523728,1746837038119,-400.0,0.00019984,2]
[360523729,1746837038128,-400.0,0.00019984,2]
[360523730,1746837038138,-400.0,0.00019984,2]
[360523731,1746837038147,-400.0,0.00019984,2]
[360523732,1746837038156,-459.63,0.00019984,2]
[360523733,1746837038166,-485.27918716,0.00019984,2]
[360523734,1746837038175,-500.0,0.00019984,2]
[360523735,1746837038184,-180.01725077,0.00019984,2]
[360523736,1746837038194,-500.0,0.00019984,2]
[360523737,1746837038203,-500.0,0.00019984,2]
[360523738,1746837038212,-500.0,0.00019984,2]
[360523739,1746837038222,-500.0,0.00019984,2]
[360523740,1746837038231,-500.0,0.00019984,2]
[360523741,1746837038244,-500.0,0.00019984,2]
[360523742,1746837038253,-500.0,0.00019984,2]
[360523743,1746837038263,-497.09,0.00019984,2]
[360523744,1746837038273,-551.5,0.00019984,2]
[360523745,1746837038282,-1250.01,0.00019984,2]
[360523746,1746837038292,-500.0,0.00019984,2]
[360523747,1746837038302,-438.78499155,0.00019984,2]
[360523748,1746837038312,-610.64,0.00019984,2]
[360523749,1746837038321,-400.0,0.00019984,2]
[360523750,1746837038331,-400.0,0.00019984,2]
[360523751,1746837038341,-468.73,0.00019984,2]
[360523752,1746837038351,-505.62205197,0.00019984,2]
[360523753,1746837038364,-113.87794803,0.00019984,2]
[360523754,1746837038374,-703.72,0.00019984,2]
[360523755,1746837038383,-418.74,0.00019984,2]
[360523756,1746837038392,-300.0,0.00019984,2]
[360523757,1746837038403,-896.22,0.00019984,2]
[360523758,1746837038412,-5793.36,0.00019984,2]
[360523759,1746837038422,-619.58,0.00019984,2]
[360523760,1746837038431,-400.0,0.00019984,2]
[360523761,1746837038440,-400.0,0.00019984,2]
[360523762,1746837038615,-400.0,0.00019984,2]
[360523763,1746837038625,-462.18,0.00019984,2]
[360523764,1746837038635,-1448.86,0.00019984,2]
[360523765,1746837038646,-400.0,0.00019984,2]
[360523766,1746837038655,-400.0,0.00019984,2]
[360523767,1746837038665,-769.21,0.00019984,2]
[360523768,1746837038674,-400.0,0.00019984,2]
[360523770,1746837038683,-670.82,0.00019984,2]
[360523772,1746837038693,-693.5,0.00019984,2]
[360523773,1746837038702,-400.0,0.00019984,2]
[360523774,1746837038712,-489.19,0.00019984,2]
[360523775,1746837038722,-400.0,0.00019984,2]
[360523777,1746837038731,-594.0,0.00019985,2]
[360523778,1746837038743,-40778.67203639,0.00019985,2]
[360523779,1746837038752,-151.0,0.00019985,2]
[360523780,1746837038762,-151.0,0.00019985,2]
[360523781,1746837038771,-400.0,0.00019985,2]
[360523782,1746837038781,-400.0,0.00019985,2]
[360523783,1746837038791,-400.0,0.00019985,2]
[360523784,1746837038800,-310.84776767,0.00019985,2]
[360523785,1746837038810,-400.0,0.00019985,2]
[360523786,1746837038819,-400.0,0.00019985,2]
[360523787,1746837038828,-600.0,0.00019985,2]
[360523788,1746837038838,-600.0,0.00019985,2]
[360523789,1746837038847,-760.97,0.00019985,2]
[360523790,1746837038856,-760.97,0.00019985,2]
[360523791,1746837038866,-151.0,0.00019985,2]
[360523792,1746837038876,-400.0,0.00019985,2]
[360523793,1746837038885,-400.0,0.00019985,2]
[360523794,1746837038894,-400.0,0.00019985,2]
[360523795,1746837038904,-400.0,0.00019985,2]
[360523796,1746837038913,-400.0,0.00019985,2]
[360523797,1746837038926,-434.49,0.00019985,2]
[360523798,1746837038935,-434.49,0.00019985,2]
[360523799,1746837038944,-961.17,0.00019985,2]
[360523800,1746837038954,-961.17,0.00019985,2]
[360523801,1746837038963,-400.0,0.00019985,2]
[360523802,1746837038973,-400.0,0.00019985,2]
[360523803,1746837038982,-789.33,0.00019985,2]
[360523804,1746837038996,-789.33,0.00019985,2]
[360523805,1746837039006,-151.16,0.00019985,2]
[360523806,1746837039016,-574.34,0.00019985,2]
[360523807,1746837039025,-574.34,0.00019985,2]
[360523808,1746837039034,-1641.99,0.00019985,2]
[360523809,1746837039044,-1641.99,0.00019985,2]
[360523810,1746837039053,-1733.16,0.00019985,2]
[360523811,1746837039062,-1733.16,0.00019985,2]
[360523812,1746837039072,-1802.21,0.00019985,2]
[360523813,1746837039081,-1802.21,0.00019985,2]
[360523814,1746837039091,-151.0,0.00019985,2]
[360523815,1746837039101,-1324.99,0.00019985,2]
[360523816,1746837039110,-1324.99,0.00019985,2]
[360523817,1746837039119,-400.0,0.00019985,2]
[360523818,1746837039129,-400.0,0.00019985,2]
[360523819,1746837039138,-400.0,0.00019985,2]
[360523820,1746837039148,-400.0,0.00019985,2]
[360523821,1746837039157,-762.69,0.00019985,2]
[360523822,1746837039168,-762.69,0.00019985,2]
[360523823,1746837039178,-400.0,0.00019985,2]
[360523824,1746837039187,-400.0,0.00019985,2]
[360523825,1746837039197,-425.88,0.00019985,2]
[360523826,1746837039207,-425.88,0.00019985,2]
[360523827,1746837039216,-758.74,0.00019985,2]
[360523828,1746837039225,-758.74,0.00019985,2]
[360523829,1746837039235,-400.0,0.00019985,2]
[360523830,1746837039252,-400.0,0.00019985,2]
[360523831,1746837039262,-6485.61,0.00019985,2]
[360523832,1746837039271,-6485.61,0.00019985,2]
[360523833,1746837039281,-1116.28,0.00019985,2]
[360523834,1746837039291,-1116.28,0.00019985,2]
[360523835,1746837039300,-400.0,0.00019985,2]
[360523836,1746837039310,-400.0,0.00019985,2]
[360523837,1746837039321,-1257.63,0.00019985,2]
[360523838,1746837039330,-1257.63,0.00019985,2]
[360523839,1746837039340,-9618.09,0.00019985,2]
[360523840,1746837039349,-9618.09,0.00019985,2]
[360523841,1746837039359,-400.0,0.00019985,2]
[360523842,1746837039369,-400.0,0.00019985,2]
[360523843,1746837039379,-771.11,0.00019985,2]
[360523844,1746837039389,-771.11,0.00019985,2]
[360523845,1746837039398,-400.0,0.00019985,2]
[360523846,1746837039408,-400.0,0.00019985,2]
[360523847,1746837039418,-187.53640914,0.00019985,2]
[360523848,1746837039428,-1562.23,0.00019985,2]
[360523849,1746837039437,-1562.23,0.00019985,2]
[360523850,1746837039447,-2000.0,0.00019985,2]
[360523851,1746837039457,-408.69,0.00019985,2]
[360523852,1746837039466,-400.0,0.00019985,2]
[360523853,1746837039476,-400.0,0.00019985,2]
[360523854,1746837039486,-400.0,0.00019985,2]
[360523855,1746837039501,-400.0,0.00019985,2]
[360523856,1746837039511,-459.63,0.00019985,2]
[360523857,1746837039520,-459.63,0.00019985,2]
[360523858,1746837039530,-497.09,0.00019985,2]
[360523859,1746837039540,-497.09,0.00019985,2]
[360523860,1746837039549,-551.5,0.00019985,2]
[360523861,1746837039560,-551.5,0.00019985,2]
[360523862,1746837039570,-1250.01,0.00019985,2]
[360523863,1746837039582,-1250.01,0.00019985,2]
[360523864,1746837039592,-610.64,0.00019985,2]
[360523865,1746837039602,-610.64,0.00019985,2]
[360523866,1746837039614,-151.0,0.00019985,2]
[360523867,1746837039624,-400.0,0.00019985,2]
[360523868,1746837039634,-400.0,0.00019985,2]
[360523869,1746837039645,-400.0,0.00019985,2]
[360523870,1746837039657,-400.0,0.00019985,2]
[360523871,1746837039666,-468.73,0.00019985,2]
[360523872,1746837039676,-468.73,0.00019985,2]
[360523873,1746837039686,-619.5,0.00019985,2]
[360523874,1746837039696,-619.5,0.00019985,2]
[360523875,1746837039706,-703.72,0.00019985,2]
[360523876,1746837039716,-418.74,0.00019985,2]
[360523877,1746837039726,-703.72,0.00019985,2]
[360523878,1746837039735,-418.74,0.00019985,2]
[360523879,1746837039752,-896.22,0.00019985,2]
[360523880,1746837039762,-896.22,0.00019985,2]
[360523881,1746837039771,-5793.36,0.00019985,2]
[360523882,1746837039781,-5793.36,0.00019985,2]
[360523883,1746837039791,-619.58,0.00019985,2]
[360523884,1746837039801,-619.58,0.00019985,2]
[360523885,1746837039810,-400.0,0.00019985,2]
[360523886,1746837039820,-400.0,0.00019985,2]
[360523887,1746837039829,-400.0,0.00019985,2]
[360523888,1746837039839,-400.0,0.00019985,2]
[360523889,1746837039848,-400.0,0.00019985,2]
[360523890,1746837039858,-303.43,0.00019985,2]
[360523891,1746837039868,-462.18,0.00019985,2]
[360523892,1746837039877,-462.18,0.00019985,2]
[360523893,1746837039887,-1448.86,0.00019985,2]
[360523894,1746837039896,-1448.86,0.00019985,2]
[360523895,1746837039906,-400.0,0.00019985,2]
[360523896,1746837039916,-400.0,0.00019985,2]
[360523897,1746837039926,-400.0,0.00019985,2]
[360523898,1746837039936,-769.21,0.00019985,2]
[360523899,1746837039946,-769.21,0.00019985,2]
[360523900,1746837039955,-400.0,0.00019985,2]
[360523901,1746837039964,-400.0,0.00019985,2]
[360523902,1746837039974,-693.5,0.00019985,2]
[360523903,1746837039983,-693.5,0.00019985,2]
[360523904,1746837039998,-670.82,0.00019985,2]
[360523905,1746837040008,-670.82,0.00019985,2]
[360523906,1746837040018,-400.0,0.00019985,2]
[360523907,1746837040028,-400.0,0.00019985,2]
[360523908,1746837040038,-400.0,0.00019985,2]
[360523909,1746837040048,-400.0,0.00019985,2]
[360523910,1746837040057,-500.0,0.00019985,2]
[360523911,1746837040068,-151.0,0.00019986,2]
[360523912,1746837040078,-151.0,0.00019986,2]
[360523913,1746837040088,-151.0,0.00019986,2]
[360523914,1746837040098,-151.0,0.00019986,2]
[360523915,1746837040107,-151.0,0.00019986,2]
[360523916,1746837040117,-151.0,0.00019986,2]
[360523917,1746837040126,-1347.5123335,0.00019986,2]
[360523918,1746837040136,-1067.6929175,0.00019986,2]
[360523919,1746837040145,-787.8735015,0.00019986,2]
[360523920,1746837040155,-508.0540855,0.00019986,2]
[360523921,1746837040164,-228.2346695,0.00019986,2]
[360523922,1746837040174,-18075.1515193,0.00019986,2]
[360523923,1746837040183,-14301.9009425,0.00019986,2]
[360523924,1746837040192,-10528.6503657,0.00019986,2]
[360523925,1746837040202,-6755.3997889,0.00019986,2]
[360523926,1746837040212,-2982.1492121,0.00019986,2]
[360523927,1746837040222,-912.2064606,0.00019986,2]
[360523928,1746837040232,-721.7801978,0.00019986,2]
[360523929,1746837040246,-531.353935,0.00019986,2]
[360523930,1746837040255,-340.9276721,0.00019986,2]
[360523931,1746837040265,-150.5014093,0.00019986,2]
[360523932,1746837040275,-151.0,0.00019986,2]
[360523933,1746837040284,-151.0,0.00019986,2]
[360523935,1746837040293,-151.0,0.00019986,2]
[360523936,1746837040303,-11732.9502582,0.00019986,2]
[360523937,1746837040312,-9285.4281348,0.00019986,2]
[360523938,1746837040322,-6837.9060114,0.00019986,2]
[360523939,1746837040332,-4390.383888,0.00019986,2]
[360523940,1746837040342,-1942.8617646,0.00019986,2]
[360523941,1746837040352,-151.0,0.00019986,2]
[360523942,1746837040361,-3837.0121156,0.00019986,2]
[360523943,1746837040371,-3036.6020027,0.00019986,2]
[360523944,1746837040381,-2236.1918898,0.00019986,2]
[360523945,1746837040390,-1435.7817769,0.00019986,2]
[360523946,1746837040399,-635.371664,0.00019986,2]
[360523947,1746837040409,-1000.0,0.00019987,2]
[360523948,1746837040418,-400.0,0.00019989,2]
[360523949,1746837040429,-232.47,0.00019989,2]
[360523950,1746837040438,-455.9,0.00019989,2]
[360523951,1746837040448,-600.0,0.00019989,2]
[360523952,1746837040457,-574.34,0.00019989,2]
[360523953,1746837040466,-1641.99,0.00019989,2]
[360523954,1746837040476,-1802.21,0.00019989,2]
[360523955,1746837040486,-1324.99,0.00019989,2]
[360523956,1746837040500,-400.0,0.00019989,2]
[360523957,1746837040510,-758.74,0.00019989,2]
[360523958,1746837040520,-400.0,0.00019989,2]
[360523959,1746837040530,-6485.61,0.00019989,2]
[360523960,1746837040539,-247.87017625,0.00019989,2]
[360523961,1746837040548,-1257.63,0.00019989,2]
[360523962,1746837040557,-400.0,0.00019989,2]
[360523963,1746837040568,-771.11,0.00019989,2]
[360523964,1746837040578,-1562.23,0.00019989,2]
[360523965,1746837040589,-201.88674771,0.0001999,2]
[360523966,1746837040598,-30303.44998106,0.0001999,2]
[360523967,1746837040608,-14700.77616206,0.0001999,2]
[360523968,1746837040622,-8270.22383794,0.0001999,2]
[360523969,1746837040633,-1191.25825704,0.0001999,2]
[360523970,1746837040642,-1191.25825704,0.0001999,2]
[360523971,1746837040651,-400.0,0.00019994,2]
[360523972,1746837040661,-760.97,0.00019994,2]
[360523973,1746837040670,-434.49,0.00019994,2]
[360523974,1746837040679,-961.17,0.00019994,2]
[360523975,1746837040689,-400.0,0.00019994,2]
[360523976,1746837040698,-789.33,0.00019994,2]
[360523977,1746837040707,-1733.16,0.00019994,2]
[360523978,1746837040717,-551.5,0.00019994,2]
[360523979,1746837040726,-1448.86,0.00019994,2]
[360523980,1746837040735,-769.21,0.00019994,2]
[360523981,1746837040750,-400.0,0.00019994,2]
[360523982,1746837040759,-693.5,0.00019994,2]
[360523983,1746837040768,-292.77,0.00019994,2]
[360523984,1746837040777,-416.79,0.00019994,2]
[360523985,1746837040787,-14295.50964798,0.00019995,2]
[360523986,1746837040798,-7413.43137072,0.00019995,2]
[360523987,1746837040807,-1668.02492571,0.00019995,2]
[360523988,1746837040817,-619.5,0.00019996,2]
[360523989,1746837040826,-500.0,0.00019997,2]
[360523990,1746837040835,-400.0,0.00019997,2]
[360523991,1746837040844,-400.0,0.00019997,2]
[360523992,1746837040854,-400.0,0.00019997,2]
[360523993,1746837040862,-400.0,0.00019997,2]
[360523994,1746837040872,-762.69,0.00019997,2]
[360523995,1746837040881,-400.0,0.00019997,2]
[360523996,1746837040890,-425.88,0.00019997,2]
[360523997,1746837040900,-1116.28,0.00019997,2]
[360523998,1746837040909,-9618.09,0.00019997,2]
[360523999,1746837040918,-151.0,0.00019997,2]
[360524000,1746837040928,-400.0,0.00019997,2]
[360524001,1746837040938,-400.0,0.00019997,2]
[360524002,1746837040947,-400.0,0.00019997,2]
[360524004,1746837040956,-459.63,0.00019997,2]
[360524005,1746837040966,-497.09,0.00019997,2]
[360524006,1746837040975,-1250.01,0.00019997,2]
[360524007,1746837040984,-610.64,0.00019997,2]
[360524008,1746837040996,-329.42718988,0.00019997,2]
[360524009,1746837041006,-400.0,0.00019997,2]
[360524010,1746837041015,-468.73,0.00019997,2]
[360524011,1746837041025,-703.72,0.00019997,2]
[360524012,1746837041034,-418.74,0.00019997,2]
[360524013,1746837041044,-896.22,0.00019997,2]
[360524014,1746837041054,-5793.36,0.00019997,2]
[360524015,1746837041063,-619.58,0.00019997,2]
[360524016,1746837041072,-400.0,0.00019997,2]
[360524017,1746837041081,-400.0,0.00019997,2]
[360524018,1746837041091,-462.18,0.00019997,2]
[360524019,1746837041100,-400.0,0.00019997,2]
[360524020,1746837041110,-670.82,0.00019997,2]
[360524021,1746837041119,-400.0,0.00019998,2]
[360524022,1746837041128,-400.0,0.00019998,2]
[360524023,1746837041138,-400.0,0.00019998,2]
[360524024,1746837041147,-400.0,0.00019998,2]
[360524025,1746837041157,-400.0,0.00019998,2]
[360524026,1746837041166,-400.0,0.00019998,2]
[360524027,1746837041175,-400.0,0.00019998,2]
[360524028,1746837041184,-400.0,0.00019998,2]
[360524029,1746837041194,-400.0,0.00019998,2]
[360524030,1746837041203,-600.0,0.00019998,2]
[360524031,1746837041212,-600.0,0.00019998,2]
[360524032,1746837041221,-600.0,0.00019998,2]
[360524033,1746837041231,-760.97,0.00019998,2]
[360524034,1746837041240,-760.97,0.00019998,2]
[360524035,1746837041253,-760.97,0.00019998,2]
[360524036,1746837041262,-400.0,0.00019998,2]
[360524037,1746837041272,-400.0,0.00019998,2]
[360524038,1746837041282,-400.0,0.00019998,2]
[360524039,1746837041291,-400.0,0.00019998,2]
[360524040,1746837041300,-400.0,0.00019998,2]
[360524041,1746837041310,-400.0,0.00019998,2]
[360524042,1746837041319,-434.49,0.00019998,2]
[360524043,1746837041329,-434.49,0.00019998,2]
[360524044,1746837041338,-434.49,0.00019998,2]